bitfinex-derivatives/quotes_ETHF0:USTF0_20260312
["timestamp","ask_amount","ask_price","bid_price","bid_amount"]
[1773347593750,0.60939782,2063.2,2062.7,0.45394763]
[1773347601966,0.56016378,2063.0,2062.5,0.25173346]
[1773347602153,0.56016378,2063.0,2062.5,0.00413388]
[1773347605861,0.56016378,2063.0,2062.5,0.4302184]
[1773347606062,0.56016378,2063.0,2062.6,0.42608452]
[1773347609267,0.56016378,2063.1,2062.8,0.42412961]
[1773347609464,0.56016378,2063.4,2062.8,0.42412961]
[1773347609664,0.56016378,2063.4,2062.7,2.08849338]
[1773347609964,0.56016378,2063.4,2062.7,0.42389]
[1773347610162,0.56016378,2063.4,2062.8,0.42301451]
[1773347613567,0.56016378,2063.4,2062.6,0.42182942]
[1773347619276,0.56627137,2063.6,2063.1,0.42160844]
[1773347620374,0.56627137,2063.6,2062.7,0.42247622]
[1773347622783,0.56627137,2063.6,2062.7,0.65881813]
[1773347623283,0.56627137,2063.6,2062.8,0.39733371]
[1773347632580,0.55884579,2063.5,2062.6,0.39896591]
[1773347634286,0.55884579,2063.4,2062.6,0.39896591]
[1773347634481,0.55884579,2063.2,2062.6,0.39896591]
[1773347642993,0.55884579,2063.0,2062.5,0.00413388]
[1773347645389,0.55884579,2063.4,2062.5,0.39213818]
[1773347645589,0.55884579,2063.3,2062.5,0.39213818]
[1773347653101,2.64628984,2063.3,2062.5,0.00413388]
[1773347653397,0.55884579,2063.2,2062.5,0.00413388]
[1773347654898,0.55884579,2063.2,2062.5,0.36320431]
[1773347655397,0.55884579,2063.2,2062.5,0.00413388]
[1773347657703,0.55884579,2063.1,2062.5,0.00413388]
[1773347661605,0.54520862,2063.0,2062.1,0.60516357]
[1773347662606,0.54520862,2063.0,2062.2,0.3640066]
[1773347673616,0.54520862,2063.0,2062.2,0.36412091]
[1773347675209,0.54520862,2063.0,2062.3,0.3689047]
[1773347675916,0.54520862,2063.2,2062.5,0.3687967]
[1773347681723,0.54520862,2063.2,2062.6,0.37471347]
[1773347688026,0.54520862,2063.2,2062.8,2.08830204]
[1773347688323,0.5694848,2063.5,2063.1,0.36466109]
[1773347688520,0.5694848,2063.5,2062.8,2.08830204]
[1773347688721,0.5694848,2063.5,2062.9,0.36456923]
[1773347688922,0.5694848,2063.5,2063.0,2.45287127]
[1773347689425,0.5694848,2063.5,2063.1,0.36458797]
[1773347693731,0.5694848,2063.5,2063.0,2.4693012]
[1773347694431,0.5694848,2063.5,2063.0,2.7130412]
[1773347695924,0.5694848,2063.5,2063.1,0.24674]
[1773347696229,0.5694848,2063.5,2062.9,0.62358565]
[1773347696827,0.5694848,2063.5,2062.9,0.38049565]
[1773347697329,0.5694848,2063.5,2062.9,0.62366565]
[1773347698031,0.5694848,2063.5,2062.9,0.38049565]
[1773347701330,2.08830204,2063.4,2062.7,0.38337067]
[1773347701536,0.56717401,2063.1,2062.5,0.38337067]
[1773347702634,0.56717401,2063.1,2062.7,0.38113297]
[1773347702836,0.56717401,2063.1,2062.7,0.62756297]
[1773347705238,0.56717401,2063.1,2062.8,0.62755391]
[1773347705433,0.56717401,2063.3,2062.8,0.62755391]
[1773347705634,0.56717401,2063.3,2062.9,0.80882872]
[1773347705839,0.56717401,2063.3,2062.8,0.56338872]
[1773347709642,0.08135802,2063.0,2062.6,0.56338872]
[1773347710146,0.56717401,2063.2,2062.7,0.56338872]
[1773347715046,0.56717401,2063.2,2062.7,0.80574872]
[1773347715443,0.56717401,2063.2,2062.7,0.56338872]
[1773347716849,0.56717401,2063.2,2062.7,0.80577872]
[1773347717047,0.56717401,2063.2,2062.7,0.56338872]
[1773347717448,0.56717401,2063.4,2062.7,0.56338872]
[1773347720749,0.56717401,2063.4,2062.9,0.58863434]
[1773347721842,0.54985666,2063.6,2063.1,0.58863434]
[1773347730459,0.54374907,2063.9,2063.3,0.58863434]
[1773347731560,0.54790193,2063.9,2063.3,0.58863434]
[1773347736267,0.54790193,2063.9,2063.5,0.58863434]
[1773347736455,0.42852047,2063.9,2063.5,0.58863434]
[1773347736658,0.42852047,2063.9,2063.4,2.67693638]
[1773347739064,0.42852047,2063.9,2063.4,0.58863434]
[1773347765283,0.55774859,2063.6,2063.1,0.58501385]
[1773347765485,0.55774859,2063.4,2062.8,0.58501385]
[1773347768588,0.55774859,2063.4,2062.9,0.58501385]
[1773347770893,0.55774859,2063.4,2063.0,0.83089385]
[1773347771593,0.55774859,2063.4,2063.1,0.24358]
[1773347771792,0.39970492,2063.4,2063.0,0.82769385]
[1773347771993,0.39970492,2063.4,2063.0,0.58501385]
[1773347773787,0.39970492,2063.4,2062.9,0.47458175]
[1773347776193,0.55774859,2063.6,2062.9,0.47458175]
[1773347795000,0.55774859,2063.6,2062.6,0.54441699]
[1773347795200,0.57088344,2063.5,2062.7,0.54441699]
[1773347797912,0.57088344,2063.5,2062.7,0.78867699]
[1773347798105,0.57088344,2063.5,2063.0,0.54441699]
[1773347798305,0.57088344,2063.5,2063.1,0.54441699]
[1773347799111,0.57088344,2063.5,2062.6,2.32627597]
[1773347799409,0.57088344,2063.5,2062.7,0.54441699]
[1773347800608,0.57088344,2063.5,2062.8,0.78832699]
[1773347800813,0.57088344,2063.5,2063.0,0.78762699]
[1773347801515,0.57088344,2063.5,2063.0,0.54441699]
[1773347802916,0.57088344,2063.5,2062.7,0.55388851]
[1773347803715,0.57088344,2063.5,2062.9,0.55388851]
[1773347813317,0.55715717,2063.6,2063.1,0.57124473]
[1773347813716,0.55715717,2063.5,2063.1,0.57124473]
[1773347813918,0.55715717,2063.5,2062.9,0.57124473]
[1773347821732,0.55715717,2063.7,2063.1,0.57124473]
[1773347822034,0.55715717,2063.6,2063.1,0.57124473]
[1773347824332,0.55715717,2063.6,2063.2,0.57124473]
[1773347824533,0.55715717,2063.6,2063.2,0.81488473]
[1773347825430,0.55715717,2063.5,2063.1,0.57124473]
[1773347826037,0.55715717,2063.5,2062.9,0.57124473]
[1773347826732,0.55715717,2063.3,2062.9,0.57124473]
[1773347827536,0.55715717,2063.3,2062.5,8.43282812]
[1773347827732,0.55715717,2063.1,2062.6,0.57124473]
[1773347830644,0.55715717,2063.1,2062.7,0.57124473]
[1773347830844,0.55715717,2063.1,2062.8,0.81441473]
[1773347831534,0.55715717,2063.1,2062.8,0.57124473]
[1773347832946,0.55715717,2063.1,2062.5,8.6734954]
[1773347832947,0.55715717,2063.1,2062.6,0.57124473]
[1773347835444,0.55715717,2063.1,2062.6,0.81377473]
[1773347835645,0.55715717,2063.1,2062.7,0.81388473]
[1773347836144,0.55715717,2063.2,2062.9,0.57124473]
[1773347837846,0.55715717,2063.2,2062.5,2.3284954]
[1773347838044,0.55715717,2063.2,2062.6,0.57124473]
[1773347841543,2.64498529,2063.2,2062.6,0.57124473]
[1773347841743,0.56294373,2062.9,2062.4,0.55361005]
[1773347842544,0.56294373,2062.9,2062.3,0.55361005]
[1773347842845,0.56294373,2062.7,2062.2,0.55361005]
[1773347845454,0.56294373,2062.9,2062.5,0.55361005]
[1773347845951,0.56294373,2063.1,2062.5,0.55361005]
[1773347846750,0.56294373,2063.1,2062.6,0.55361005]
[1773347849943,0.24225,2063.6,2062.6,0.55361005]
[1773347850145,2.65077185,2063.5,2062.8,0.55361005]
[1773347850455,0.56294373,2063.0,2062.4,0.55361005]
[1773347851255,0.56294373,2062.9,2062.4,0.55361005]
[1773347857358,0.56294373,2062.8,2062.2,0.55361005]
[1773347880991,6.1329465,2063.4,2062.2,0.55361005]
[1773347881192,0.55382221,2063.2,2062.4,0.54646206]
[1773347885996,0.55382221,2063.4,2062.7,0.54646206]
[1773347889591,6.00335183,2063.6,2062.7,0.54646206]
[1773347889796,0.55382221,2063.5,2062.7,0.54646206]
[1773347894695,0.55382221,2063.5,2062.8,0.54646206]
[1773347904605,0.55382221,2063.5,2062.8,0.78972206]
[1773347904806,0.55382221,2063.5,2063.0,0.58256705]
[1773347914013,0.55382221,2063.5,2062.8,0.58256705]
[1773347914811,0.55382221,2063.5,2062.6,0.58256705]
[1773347917720,0.55382221,2063.5,2062.7,0.58256705]
[1773347920419,0.55382221,2063.5,2062.8,0.58256705]
[1773347925524,0.55382221,2063.5,2062.7,0.57187877]
[1773347925723,0.58687204,2063.2,2062.7,0.57187877]
[1773347928625,0.58687204,2062.7,2062.3,10.15700982]
[1773347928825,0.58687204,2062.7,2062.2,0.57187877]
[1773347929623,0.58687204,2062.5,2062.1,0.57647893]
[1773347935931,0.5638834,2062.7,2062.2,0.55561537]
[1773347936140,0.5638834,2063.0,2062.4,0.55561537]
[1773347939738,0.5638834,2062.8,2062.4,0.55561537]
[1773347942241,0.5638834,2062.8,2062.4,0.54161537]
[1773347943843,0.5638834,2062.8,2062.2,0.55561537]
[1773347944045,2.08842652,2062.7,2062.2,0.55561537]
[1773347944341,0.5638834,2062.6,2062.1,0.56021553]
[1773347947044,0.5638834,2062.8,2062.1,0.56021553]
[1773347947250,0.5638834,2062.8,2062.2,0.55561537]
[1773347949749,0.5638834,2062.8,2062.4,0.55561537]
[1773347955640,2.65230992,2062.8,2062.4,0.55561537]
[1773347955840,0.5638834,2062.7,2062.3,0.55561537]
[1773347961253,0.55322669,2062.5,2062.1,0.00460016]
[1773347961854,0.55322669,2062.5,2062.1,0.56862174]
[1773347963351,0.55322669,2062.5,2062.1,0.00460016]
[1773347963554,0.55322669,2062.5,2062.1,0.56862174]
[1773347965949,0.55322669,2062.5,2061.9,0.56402158]
[1773347967165,0.55322669,2062.5,2061.9,0.5683406]
[1773347972271,0.55322669,2062.3,2061.9,0.5683406]
[1773347972570,0.55711922,2062.3,2061.9,0.5683406]
[1773347982680,0.58476878,2062.6,2062.0,0.57877211]
[1773347983572,0.58476878,2062.6,2062.2,0.57877211]
[1773347983874,0.59062245,2062.6,2062.2,0.57877211]
[1773347984178,0.00585367,2062.6,2062.4,0.57877211]
[1773347984477,2.33072652,2063.2,2062.4,0.57877211]
[1773347984478,0.58476878,2062.9,2062.4,0.57877211]
[1773347984875,6.60114999,2063.1,2062.4,0.57877211]
[1773347985172,0.58476878,2063.0,2062.4,0.57877211]
[1773347985677,0.58931197,2063.0,2062.4,0.57877211]
[1773347986078,0.00454319,2063.0,2062.4,0.57877211]
[1773347987679,0.58931197,2063.0,2062.4,0.57877211]
[1773347990183,0.58931197,2063.0,2062.0,0.57877211]
[1773347990577,0.58931197,2063.0,2062.2,0.55009518]
[1773348001483,0.58931197,2063.0,2062.4,0.55009518]
[1773348001985,0.00454319,2063.0,2062.4,0.55009518]
[1773348002186,0.55617926,2063.0,2062.4,0.55009518]
[1773348005490,0.55617926,2063.0,2062.5,0.79253518]
[1773348005790,0.55617926,2063.0,2062.6,0.55009518]
[1773348006488,0.55163607,2062.8,2062.2,0.55009518]
[1773348006684,0.55163607,2062.7,2062.1,0.55009518]
[1773348008994,0.55163607,2062.9,2062.1,0.55009518]
[1773348009192,0.55163607,2062.9,2062.2,0.55009518]
[1773348010594,0.55163607,2062.9,2062.5,0.55009518]
[1773348023797,0.55163607,2062.9,2062.2,0.53918888]
[1773348028909,0.55163607,2062.9,2062.3,0.53918888]
[1773348029406,0.55163607,2062.9,2062.4,0.78202888]
[1773348029603,0.55163607,2062.9,2062.4,0.53918888]
[1773348039220,0.55163607,2062.9,2062.1,0.53918888]
[1773348047630,0.55163607,2062.9,2062.2,0.5439962]
[1773348051629,0.55163607,2062.9,2062.3,0.787817]
[1773348051835,0.55163607,2062.9,2062.5,0.545327]
[1773348053231,0.55163607,2062.9,2062.2,0.545327]
[1773348061643,0.55163607,2062.9,2062.5,0.789117]
[1773348061839,0.55163607,2062.9,2062.5,0.788097]
[1773348062045,0.55163607,2062.9,2062.6,0.545327]
[1773348062543,0.55163607,2062.9,2062.4,0.545327]
[1773348073656,0.55718158,2062.7,2062.0,0.545327]
[1773348073855,0.55718158,2062.5,2062.0,0.545327]
[1773348074350,2.64625063,2062.8,2062.0,0.545327]
[1773348074652,0.55718158,2062.7,2062.2,0.545327]
[1773348074853,0.24234,2062.9,2062.2,0.545327]
[1773348075054,0.55718158,2062.8,2062.2,0.545327]
[1773348075651,0.55718158,2062.5,2061.9,0.78889169]
[1773348075852,0.24236,2062.7,2061.9,0.78889169]
[1773348075853,0.55718158,2062.3,2061.9,0.24356469]
[1773348076557,0.55718158,2062.3,2061.9,0.00431902]
[1773348076957,0.23823915,2061.9,2061.3,10.15700982]
[1773348077156,2.32730813,2062.0,2061.3,0.545327]
[1773348077554,0.23823908,2062.0,2061.3,0.545327]
[1773348078055,0.23823825,2061.7,2061.3,0.55090172]
[1773348079554,0.25247479,2061.9,2061.3,0.55090172]
[1773348087669,0.22589174,2061.7,2061.3,0.55090172]
[1773348087967,0.22589174,2061.7,2061.3,0.00557472]
[1773348088368,0.22589174,2061.7,2061.3,0.58506645]
[1773348088771,0.22910862,2061.8,2061.3,0.58506645]
[1773348089174,2.08906905,2062.0,2061.3,0.58506645]
[1773348089366,0.22910856,2061.9,2061.3,0.58506645]
[1773348090670,2.31817761,2061.9,2061.3,0.58506645]
[1773348090873,0.23169225,2061.8,2061.3,0.58506645]
[1773348092575,0.55028686,2061.6,2060.8,1e-05]
[1773348092775,2.63935591,2061.1,2060.7,0.60149173]
[1773348093076,0.55028686,2061.2,2060.7,0.57949173]
[1773348093274,0.55028686,2061.2,2060.8,0.60149173]
[1773348093474,0.55028686,2061.2,2060.8,0.57949173]
[1773348093772,0.5543984,2061.2,2060.8,0.60679038]
[1773348096778,0.5543984,2061.2,2060.8,0.58479038]
[1773348097170,0.55028686,2061.3,2060.9,0.60149173]
[1773348097375,0.55028686,2061.4,2060.9,0.60149173]
[1773348097577,2.08906905,2061.3,2060.9,0.60149173]
[1773348097777,0.55028686,2061.2,2060.9,0.60149173]
[1773348098178,0.55028686,2061.2,2060.9,0.57949173]
[1773348098476,0.55595644,2061.2,2060.9,0.57949173]
[1773348099683,0.00566958,2061.2,2060.9,0.57949173]
[1773348101285,0.55595644,2061.2,2060.9,0.57949173]
[1773348101784,2.63935591,2061.5,2061.1,0.57949173]
[1773348102383,0.55028686,2061.4,2061.1,0.57949173]
[1773348102783,0.5544106,2061.4,2061.0,0.022]
[1773348103186,0.5544106,2061.4,2061.0,0.56185219]
[1773348106485,0.59045827,2061.2,2060.8,0.00529865]
[1773348106692,2.08906905,2060.9,2060.6,0.53985219]
[1773348106988,0.59045827,2061.0,2060.6,0.53985219]
[1773348107792,0.59045827,2061.0,2060.6,0.54461189]
[1773348115588,0.59045827,2061.0,2060.6,0.0047597]
[1773348118789,0.59045827,2061.0,2060.5,0.55706488]
[1773348119793,0.59045827,2061.0,2060.5,0.56166126]
[1773348120991,0.58584761,2060.8,2060.3,0.55706488]
[1773348121992,0.58584761,2060.6,2059.9,0.55706488]
[1773348122292,0.58584761,2060.4,2059.9,0.55706488]
[1773348123390,0.58584761,2060.5,2059.9,0.55706488]
[1773348123595,0.58584761,2060.7,2060.0,0.55706488]
[1773348127197,0.58584761,2060.8,2060.0,0.55706488]
[1773348129594,0.58584761,2060.8,2060.0,6.90706488]
[1773348129795,0.58584761,2060.8,2060.1,0.55706488]
[1773348132002,0.58584761,2060.7,2060.1,0.55706488]
[1773348132596,2.67879951,2060.9,2060.1,0.55706488]
[1773348132800,0.58584761,2060.9,2060.1,0.55706488]
[1773348136303,8.6854919,2061.2,2060.1,0.55706488]
[1773348136507,0.58584761,2061.0,2060.1,0.55706488]
[1773348137608,0.58584761,2061.0,2060.3,0.55706488]
[1773348137809,0.58584761,2061.0,2060.5,0.55706488]
[1773348143013,0.5467392,2061.1,2060.5,0.55706488]
[1773348150015,0.5467392,2061.1,2060.1,0.23961326]
[1773348150016,0.5467392,2060.7,2059.9,0.5401213]
[1773348150922,0.5467392,2060.5,2059.9,0.5401213]
[1773348151122,2.3355219,2061.0,2059.9,0.5401213]
[1773348151123,0.5467392,2060.3,2059.9,0.5401213]
[1773348153820,0.5467392,2060.6,2059.9,0.5401213]
[1773348154514,0.5467392,2060.4,2059.9,0.5401213]
[1773348154718,0.5467392,2060.6,2059.9,0.5401213]
[1773348156223,0.5467392,2060.7,2059.9,0.5401213]
[1773348157627,0.5467392,2060.7,2060.2,0.5401213]
[1773348157829,0.5467392,2060.7,2060.3,0.7852213]
[1773348158022,0.5467392,2061.2,2060.7,0.5401213]
[1773348158225,6.31230671,2061.4,2060.7,0.5401213]
[1773348158226,7.13961967,2061.1,2060.7,0.5401213]
[1773348158523,0.5467392,2061.1,2060.7,0.5401213]
[1773348160623,0.5467392,2061.1,2060.6,0.5401213]
[1773348164231,0.5598437,2061.3,2060.6,0.5401213]
[1773348164433,0.56396744,2061.4,2060.6,0.5401213]
[1773348165430,0.5598437,2060.8,2060.3,0.59429619]
[1773348165734,2.0929519,2060.9,2060.0,0.59429619]
[1773348165735,0.5598437,2060.6,2060.0,0.59429619]
[1773348167846,0.5598437,2060.8,2060.0,0.59429619]
[1773348169145,0.5598437,2060.8,2060.4,0.59429619]
[1773348169647,0.5598437,2060.8,2060.5,0.59429619]
[1773348169842,0.5598437,2060.8,2060.5,0.83892619]
[1773348170146,0.5598437,2060.8,2060.5,0.59429619]
[1773348170646,0.5598437,2060.8,2059.9,6.8405673]
[1773348170943,0.5598437,2060.8,2060.0,0.58936365]
[1773348171451,0.5598437,2060.8,2060.0,0.83420365]
[1773348171643,2.65300797,2060.8,2060.3,0.83472365]
[1773348171842,2.65300797,2060.8,2060.4,0.83430365]
[1773348172346,0.56579482,2060.7,2060.4,0.83430365]
[1773348174649,2.65895909,2060.8,2060.5,0.83408365]
[1773348175450,2.65895909,2060.8,2060.5,0.58936365]
[1773348176149,0.56579482,2060.7,2060.1,0.58936365]
[1773348176448,2.65895909,2060.8,2060.1,0.58936365]
[1773348177245,0.56579482,2060.7,2060.3,0.58936365]
[1773348178548,0.56579482,2060.7,2060.3,0.83232365]
[1773348179747,0.56579482,2060.7,2060.3,0.83209365]
[1773348179952,0.56579482,2060.7,2060.3,0.58936365]
[1773348180650,0.56579482,2060.7,2060.3,0.83213365]
[1773348181754,0.56579482,2060.7,2060.4,0.84129365]
[1773348183447,0.56579482,2060.7,2059.8,0.61136365]
[1773348183648,0.24255,2061.1,2059.8,0.61136365]
[1773348183649,0.56579482,2060.5,2059.8,0.61136365]
[1773348184253,0.56579482,2060.5,2060.0,0.58936365]
[1773348184856,2.09316427,2060.4,2060.0,0.58936365]
[1773348185054,0.56579482,2060.3,2060.0,0.58936365]
[1773348185254,0.56579482,2060.3,2059.9,0.58936365]
[1773348186454,0.56579482,2060.3,2060.0,0.83393365]
[1773348186755,0.56579482,2060.3,2060.0,0.58936365]
[1773348188758,0.56579482,2060.3,2060.0,0.83306365]
[1773348191758,0.56579482,2060.3,2059.8,0.2652399]
[1773348191961,0.56579482,2060.3,2059.9,0.58936365]
[1773348192258,0.56579482,2060.3,2059.9,0.83475365]
[1773348192455,0.56579482,2060.3,2059.9,0.58936365]
[1773348192456,0.56579482,2060.2,2059.9,0.58936365]
[1773348192759,0.56579482,2060.2,2059.8,0.022]
[1773348193163,0.56579482,2060.0,2059.6,0.61136365]
[1773348193862,0.56579482,2060.0,2059.7,0.84060365]
[1773348194163,0.56579482,2060.1,2059.8,0.84355365]
[1773348194352,0.24259,2060.8,2059.8,0.84355365]
[1773348194353,0.56579482,2060.6,2060.2,0.58936365]
[1773348194552,0.56579482,2060.6,2060.0,0.58936365]
[1773348194762,0.56579482,2060.6,2059.8,2.09316427]
[1773348194763,0.56579482,2060.6,2060.1,0.84606365]
[1773348195061,0.56579482,2060.4,2060.1,0.84606365]
[1773348195460,0.56579482,2060.7,2060.1,0.58936365]
[1773348195761,0.56579482,2060.7,2059.9,0.58936365]
[1773348195964,0.56579482,2060.5,2060.2,0.58936365]
[1773348196863,0.56579482,2060.5,2060.2,0.83209365]
[1773348197259,0.56579482,2060.7,2060.3,0.58936365]
[1773348197965,0.56049606,2060.7,2060.3,0.58936365]
[1773348200468,0.5470083,2060.9,2060.6,0.59004628]
[1773348200764,0.5470083,2060.9,2060.3,0.59004628]
[1773348200967,0.5470083,2060.9,2060.5,0.59004628]
[1773348202366,0.5470083,2060.9,2060.2,0.59004628]
[1773348204768,0.5470083,2060.7,2060.2,0.59004628]
[1773348205267,0.5470083,2060.7,2060.3,0.59004628]
[1773348205458,0.5470083,2060.7,2060.4,0.59004628]
[1773348205666,0.5470083,2060.8,2060.5,0.83410628]
[1773348206470,0.5470083,2060.8,2060.5,0.59004628]
[1773348207971,0.5470083,2060.8,2060.2,0.59004628]
[1773348208774,0.5470083,2060.8,2060.3,0.59004628]
[1773348210772,2.09316427,2061.0,2060.3,0.59004628]
[1773348211076,2.64017257,2061.0,2060.5,0.59004628]
[1773348211377,2.09316427,2061.0,2060.5,0.59004628]
[1773348211576,0.5470083,2060.9,2060.5,0.59004628]
[1773348214878,4.26512647,2061.3,2060.5,0.59004628]
[1773348214879,0.5470083,2061.1,2060.5,0.59004628]
[1773348215372,0.5470083,2060.9,2060.5,0.59004628]
[1773348220884,0.23617172,2060.9,2060.5,0.59004628]
[1773348226288,0.8775203,2061.0,2060.5,0.59004628]
[1773348227091,0.2373476,2060.9,2060.5,0.59004628]
[1773348229192,0.64017257,2061.0,2060.5,0.59004628]
[1773348229387,0.87913082,2061.0,2060.5,0.59004628]
[1773348231593,0.23958143,2060.9,2060.5,0.59004628]
[1773348232893,0.64017257,2061.0,2060.5,0.59004628]
[1773348233094,0.87891627,2061.0,2060.5,0.59004628]
[1773348233595,0.2387437,2061.0,2060.5,0.59004628]
[1773348238490,0.23177288,2061.2,2060.5,0.59004628]
[1773348238690,0.23177277,2061.3,2060.5,0.59004628]
[1773348238993,0.23589651,2061.4,2060.5,0.59004628]
[1773348239195,6.54554231,2061.3,2060.5,0.59004628]
[1773348239392,0.23589651,2061.4,2060.5,0.59004628]
[1773348239592,6.54599335,2061.3,2060.5,0.59004628]
[1773348239791,0.23589651,2061.4,2060.5,0.59004628]
[1773348239996,6.54599551,2061.3,2060.5,0.59004628]
[1773348240295,0.23589651,2061.4,2060.5,0.59004628]
[1773348240495,6.5468824,2061.3,2060.5,0.59004628]
[1773348240697,0.00412374,2061.4,2060.7,2.6700063]
[1773348240896,0.00412374,2061.4,2060.8,6.92915677]
[1773348241196,0.23184251,2061.9,2061.0,0.57715677]
[1773348241495,0.23184251,2062.1,2061.0,0.57715677]
[1773348241890,0.23184239,2062.0,2061.0,0.57715677]
[1773348242090,0.23639348,2062.0,2061.0,0.58128051]
[1773348242796,0.23639348,2062.0,2061.1,0.57715677]
[1773348242997,0.24230288,2061.9,2061.2,0.57715677]
[1773348247599,0.57181704,2061.5,2061.0,0.58128051]
[1773348249898,2.09284953,2061.8,2061.0,0.58128051]
[1773348249899,0.57181704,2061.6,2061.0,0.58128051]
[1773348250104,0.57181704,2061.8,2061.1,0.57715677]
[1773348262512,0.57181704,2061.8,2061.3,0.81522939]
[1773348262712,0.57181704,2061.8,2061.4,0.81567939]
[1773348263016,0.57181704,2061.8,2061.4,0.57239939]
[1773348263909,0.57181704,2061.8,2061.3,0.57239939]
[1773348278818,0.57181704,2061.8,2061.1,6.92439939]
[1773348280716,0.57181704,2061.8,2061.2,0.57239939]
[1773348283926,0.57181704,2061.8,2061.3,0.56402811]
[1773348291027,0.57181704,2061.8,2061.2,0.62481701]
[1773348291430,0.57181704,2061.8,2061.2,6.97681701]
[1773348291731,0.5863782,2061.6,2061.1,0.62481701]
[1773348291930,0.5863782,2061.6,2061.1,6.97681701]
[1773348292125,0.5863782,2061.6,2061.1,6.352]
[1773348293730,0.5863782,2061.4,2061.0,0.62894075]
[1773348293932,0.5863782,2061.2,2060.7,6.97681701]
[1773348294332,0.5863782,2061.2,2060.7,7.21874949]
[1773348294632,0.5863782,2061.2,2060.8,0.62481701]
[1773348300636,2.67840088,2061.5,2060.8,0.62481701]
[1773348301037,0.5863782,2061.4,2060.8,0.62481701]
[1773348302239,0.5863782,2060.9,2060.5,6.97781701]
[1773348303034,0.5863782,2060.9,2060.6,0.62481701]
[1773348303236,0.5863782,2061.1,2060.6,0.62481701]
[1773348304636,0.24249,2061.6,2060.0,0.62481701]
[1773348304637,0.5863782,2060.7,2060.0,0.62481701]
[1773348304841,2.67840088,2060.7,2060.0,0.62481701]
[1773348305031,0.5863782,2061.0,2060.2,0.62481701]
[1773348305442,0.5863782,2061.1,2060.6,0.62481701]
[1773348307940,0.5863782,2061.2,2060.6,0.62481701]
[1773348308340,0.5863782,2061.2,2060.7,6.353]
[1773348308633,0.5863782,2061.2,2060.8,0.62481701]
[1773348310242,0.5863782,2061.2,2060.4,0.24262]
[1773348310243,0.5863782,2061.1,2060.6,0.62481701]
[1773348310444,0.5863782,2061.1,2060.7,0.62481701]
[1773348311441,0.5863782,2061.3,2060.8,0.62481701]
[1773348318450,0.5863782,2061.3,2060.8,6.97781701]
[1773348318952,0.5863782,2061.3,2060.9,0.62481701]
[1773348319146,0.5863782,2061.5,2060.9,0.62481701]
[1773348319350,0.5863782,2061.5,2061.0,0.62481701]
[1773348319753,0.5863782,2061.9,2061.4,0.62481701]
[1773348321351,0.60457918,2061.7,2061.2,0.58551222]
[1773348321956,0.60457918,2061.7,2061.3,0.58551222]
[1773348323759,0.60457918,2061.8,2061.3,0.58551222]
[1773348324059,0.60457918,2061.9,2061.3,0.58551222]
[1773348325258,0.60457918,2061.9,2061.5,0.58551222]
[1773348326859,0.60913027,2062.0,2061.5,0.58551222]
[1773348327462,0.60913027,2062.0,2061.6,0.58551222]
[1773348328761,0.60457918,2062.1,2061.6,0.58551222]
[1773348329863,0.61003032,2062.1,2061.6,0.59006331]
[1773348330465,0.60457918,2061.9,2061.4,6.93751222]
[1773348330662,0.60457918,2061.7,2061.3,0.58551222]
[1773348330869,0.60457918,2061.7,2061.3,6.93751222]
[1773348331064,0.60457918,2061.7,2061.4,0.58551222]
[1773348331265,0.00545114,2062.1,2061.4,0.58551222]
[1773348331266,2.09202268,2062.0,2061.4,0.58551222]
[1773348331470,2.69660186,2062.0,2061.4,0.58551222]
[1773348331671,0.60457918,2061.9,2061.4,0.58551222]
[1773348333060,0.60457918,2061.7,2061.4,0.58551222]
[1773348333373,0.60457918,2061.7,2061.4,6.352]
[1773348335173,0.60457918,2061.7,2061.4,6.76714578]
[1773348335372,0.60457918,2061.7,2061.4,6.352]
[1773348338068,0.60457918,2062.0,2061.5,0.41552462]
[1773348338570,0.60457918,2061.9,2061.5,0.41552462]
[1773348339777,0.60457918,2061.9,2061.5,6.352]
[1773348340372,0.60457918,2061.9,2061.5,6.76683765]
[1773348344577,0.60457918,2061.9,2061.6,0.42398404]
[1773348344877,0.60457918,2061.9,2061.5,6.77618422]
[1773348349382,0.60457918,2061.9,2061.5,6.352]
[1773348350381,0.00545114,2062.1,2060.9,0.42645965]
[1773348350382,0.59034838,2061.5,2060.9,0.42645965]
[1773348350584,0.59034838,2061.5,2061.0,0.42645965]
[1773348352487,0.59034838,2062.0,2061.3,0.40994211]
[1773348352689,0.59034838,2062.0,2060.6,0.2426]
[1773348352690,0.59034838,2062.0,2061.5,0.40994211]
[1773348352887,0.59034838,2062.0,2061.7,0.41011788]
[1773348353385,0.59579952,2062.1,2061.7,0.41011788]
[1773348360790,0.59034838,2062.5,2061.7,0.41011788]
[1773348361695,0.5964947,2062.5,2061.7,0.41412503]
[1773348362086,0.5964947,2062.5,2061.9,0.40821975]
[1773348363392,0.5964947,2062.5,2061.7,0.41407553]
[1773348363598,0.59034838,2062.3,2061.8,6.352]
[1773348364091,0.59034838,2062.3,2061.9,0.41022581]
[1773348367192,0.59034838,2062.3,2061.9,6.76222581]
[1773348368495,0.59034838,2062.3,2062.0,0.40472817]
[1773348369694,0.59034838,2062.4,2062.0,0.40472817]
[1773348374205,0.18516858,2062.4,2062.0,0.40472817]
[1773348374400,0.5964947,2062.5,2062.0,0.40472817]
[1773348375098,0.00614632,2062.5,2062.0,0.40472817]
[1773348376209,0.59034838,2062.8,2062.1,0.62965689]
[1773348377102,0.59034838,2062.8,2062.3,0.62965689]
[1773348377299,0.59547973,2062.8,2062.5,0.87239689]
[1773348377498,0.59547973,2062.8,2062.4,6.98165689]
[1773348377908,0.59547973,2062.8,2062.5,0.62965689]
[1773348380505,0.59547973,2062.8,2062.4,6.9484619]
[1773348382213,0.59547973,2062.8,2062.5,0.5964619]
[1773348382911,0.59547973,2062.8,2062.5,6.9484619]
[1773348383809,0.00513135,2062.8,2062.5,6.9484619]
[1773348384008,0.00513135,2062.8,2062.6,0.5964619]
[1773348384410,0.59101991,2062.9,2062.6,0.5964619]
[1773348385409,0.59582745,2062.9,2062.6,0.5964619]
[1773348385911,0.59582745,2062.9,2062.5,6.9484619]
[1773348386714,0.59582745,2062.9,2062.6,0.5964619]
[1773348387324,0.59582745,2062.9,2062.5,6.352]
[1773348387619,0.59582745,2062.9,2062.5,6.9484619]
[1773348388226,0.59582745,2062.9,2062.6,0.5964619]
[1773348391421,0.59582745,2062.9,2062.5,6.352]
[1773348391625,0.59582745,2062.9,2062.5,6.9484619]
[1773348395239,0.59582745,2062.9,2062.6,0.5964619]
[1773348401539,0.00480754,2062.9,2062.6,0.5964619]
[1773348402233,6.34441163,2063.2,2062.6,0.5964619]
[1773348402443,0.63927797,2063.4,2062.7,0.57890628]
[1773348402937,6.95576238,2063.5,2062.7,0.57890628]
[1773348403138,0.63927797,2063.5,2062.7,0.57890628]
[1773348403331,0.64504132,2063.5,2062.7,0.57890628]
[1773348403728,6.95963861,2063.5,2062.7,0.57890628]
[1773348403930,0.64504132,2063.5,2062.7,0.57890628]
[1773348404133,0.63927797,2063.6,2062.9,0.57890628]
[1773348404533,0.63927797,2063.9,2063.1,0.57890628]
[1773348404838,0.63927797,2063.8,2063.1,0.57890628]